bitfinex/quotes_SOLUSD_20240614
["timestamp","ask_amount","ask_price","bid_price","bid_amount"]
[1718337402517,16.1747,147.48,147.46,6.18]
[1718337402936,16.1747,147.48,147.42,0.17]
[1718337403148,16.1747,147.48,147.44,6.18]
[1718337410336,16.1747,147.48,147.42,2.5098]
[1718337410558,16.1747,147.48,147.43,6.18]
[1718337413948,16.1747,147.48,147.42,2.5097]
[1718337414153,16.1747,147.48,147.43,6.18]
[1718337414540,16.1747,147.48,147.41,2.8499]
[1718337414748,16.1747,147.48,147.43,6.18]
[1718337416177,22.3547,147.48,147.42,6.18]
[1718337417072,22.3547,147.48,147.42,8.6898]
[1718337418879,6.1322,147.47,147.39,8.53764549]
[1718337419056,6.1322,147.47,147.41,8.6899]
[1718337419057,12.3122,147.47,147.41,8.6899]
[1718337419362,6.1322,147.47,147.42,8.6898]
[1718337420269,6.1322,147.47,147.42,6.18]
[1718337420444,12.3122,147.47,147.41,6.18]
[1718337420967,10.17555751,147.46,147.41,6.18]
[1718337422076,10.17555751,147.46,147.43,8.6895]
[1718337422272,10.17555751,147.47,147.45,6.18]
[1718337422875,10.17555751,147.47,147.44,1.35443406]
[1718337423079,26.35025751,147.48,147.41,2.6799]
[1718337423286,26.35025751,147.48,147.42,0.17]
[1718337423655,10.17555751,147.47,147.41,0.17]
[1718337423861,10.17555751,147.47,147.42,6.18]
[1718337424597,10.17555751,147.45,147.4,6.18]
[1718337424889,10.17555751,147.46,147.41,6.18]
[1718337425389,10.17555751,147.46,147.39,2.5103]
[1718337425569,10.17555751,147.46,147.36,8.53764549]
[1718337425570,10.17555751,147.45,147.38,2.5104]
[1718337425762,10.17555751,147.45,147.41,6.18]
[1718337425964,10.17555751,147.46,147.41,6.18]
[1718337426187,10.17555751,147.45,147.41,6.18]
[1718337428398,10.17555751,147.45,147.39,0.17]
[1718337428556,2.5098,147.42,147.39,0.34]
[1718337428765,2.5098,147.42,147.4,6.18]
[1718337429062,2.5098,147.42,147.41,6.18]
[1718337429257,2.5098,147.42,147.38,0.51]
[1718337429461,2.5098,147.42,147.41,6.18]
[1718337430372,10.17555751,147.44,147.4,6.18]
[1718337430683,26.23215751,147.43,147.38,0.51]
[1718337430896,10.17555751,147.42,147.36,8.53764549]
[1718337431203,10.17555751,147.42,147.38,6.18]
[1718337432702,10.17555751,147.42,147.36,11.04844549]
[1718337432883,26.23215751,147.43,147.39,6.18]
[1718337433079,26.23215751,147.43,147.4,0.34]
[1718337433285,16.0566,147.43,147.41,6.18]
[1718337434198,16.0566,147.43,147.4,6.18]
[1718337435078,16.0566,147.43,147.37,3.1906]
[1718337435079,16.0566,147.43,147.41,6.18]
[1718337435812,16.0566,147.43,147.39,6.52]
[1718337435987,26.23215751,147.43,147.38,6.18]
[1718337436383,10.17555751,147.42,147.38,6.18]
[1718337436708,10.17555751,147.42,147.39,6.18]
[1718337437695,10.17555751,147.42,147.37,0.68]
[1718337437886,26.23215751,147.43,147.38,0.34]
[1718337438085,10.17555751,147.42,147.38,6.18]
[1718337438816,32.41215751,147.43,147.37,6.69]
[1718337439117,26.23215751,147.43,147.38,6.18]
[1718337439312,26.23215751,147.43,147.35,2.5109]
[1718337439522,26.23215751,147.43,147.38,6.18]
[1718337440206,16.0566,147.43,147.38,6.18]
[1718337440395,26.23215751,147.43,147.38,6.18]
[1718337441415,26.23215751,147.43,147.39,6.18]
[1718337442421,26.23215751,147.43,147.35,6.18]
[1718337442422,10.17555751,147.43,147.42,6.18]
[1718337442594,10.17555751,147.45,147.42,6.52]
[1718337442914,10.17555751,147.46,147.44,6.18]
[1718337443297,25.32955751,147.47,147.43,0.17]
[1718337443499,25.33154646,147.47,147.43,6.18]
[1718337444018,15.154,147.47,147.43,6.18]
[1718337444199,25.33154646,147.47,147.43,6.18]
[1718337444389,25.33154646,147.47,147.42,0.34]
[1718337444626,25.33154646,147.47,147.43,6.18]
[1718337445215,25.33154646,147.47,147.42,0.34]
[1718337445529,25.33154646,147.47,147.43,6.18]
[1718337446119,25.33154646,147.47,147.42,0.34]
[1718337446324,25.33154646,147.47,147.43,6.18]
[1718337446530,25.33154646,147.47,147.42,0.34]
[1718337446734,25.33154646,147.47,147.43,6.18]
[1718337447019,25.33154646,147.47,147.42,0.34]
[1718337447518,25.33180356,147.47,147.43,6.18]
[1718337447916,15.154,147.47,147.43,6.18]
[1718337448224,25.33180356,147.47,147.43,6.18]
[1718337448537,15.154,147.47,147.43,6.18]
[1718337448923,25.33180356,147.47,147.43,6.18]
[1718337450827,25.33180356,147.47,147.42,6.52]
[1718337451534,25.33180356,147.47,147.42,0.34]
[1718337451720,25.33180356,147.47,147.42,6.52]
[1718337452438,25.33180356,147.47,147.42,6.18]
[1718337453309,31.51180356,147.47,147.39,0.77917367]
[1718337453535,10.17780356,147.46,147.41,6.18]
[1718337454619,10.17780356,147.46,147.41,8.6899]
[1718337454943,31.51180356,147.47,147.41,8.6899]
[1718337455734,10.17780356,147.46,147.41,8.6899]
[1718337457018,10.17780356,147.46,147.42,6.18]
[1718337457452,25.33180356,147.47,147.42,6.18]
[1718337457919,10.17780356,147.46,147.42,6.18]
[1718337458118,10.17780356,147.45,147.41,6.18]
[1718337458353,10.17780356,147.46,147.4,0.17]
[1718337458533,10.17780356,147.46,147.4,3.0201]
[1718337458720,10.17780356,147.46,147.42,6.18]
[1718337459838,25.33180356,147.47,147.42,6.18]
[1718337460048,10.17780356,147.46,147.4,0.51]
[1718337460357,10.17780356,147.46,147.42,6.18]
[1718337461855,10.17805025,147.46,147.42,6.18]
[1718337465530,15.154,147.47,147.42,6.18]
[1718337465827,15.154,147.47,147.41,6.18]
[1718337466157,16.35830366,147.46,147.41,6.18]
[1718337466344,16.35830366,147.46,147.4,6.35]
[1718337466345,10.17830366,147.45,147.4,6.35]
[1718337466658,10.17830366,147.44,147.4,6.18]
[1718337468858,10.17830366,147.45,147.4,6.18]
[1718337469037,10.17830366,147.45,147.41,0.34]
[1718337469246,10.17830366,147.46,147.42,6.18]
[1718337472242,10.17830366,147.45,147.42,6.18]
[1718337472660,10.17830366,147.45,147.41,6.52]
[1718337472972,10.17830366,147.45,147.42,6.18]
[1718337473259,15.154,147.47,147.42,6.18]
[1718337473260,10.17830366,147.46,147.42,6.18]
[1718337473442,10.17830366,147.46,147.44,6.18]
[1718337473644,10.17830366,147.47,147.44,6.18]
[1718337474038,10.17830366,147.47,147.45,6.18]
[1718337474547,10.17830366,147.48,147.45,6.18]
[1718337474952,10.17830366,147.49,147.45,6.18]
[1718337475144,10.17830366,147.48,147.45,6.18]
[1718337475553,10.17830366,147.49,147.45,6.18]
[1718337475749,10.17830366,147.49,147.42,6.18]
[1718337475952,10.17830366,147.5,147.44,2.5094]
[1718337476188,10.17830366,147.5,147.48,6.18]
[1718337476641,10.17830366,147.51,147.48,6.18]
[1718337477851,10.17830366,147.51,147.47,6.18]
[1718337478175,10.17830366,147.5,147.47,6.18]
[1718337478656,10.17830366,147.5,147.45,6.69]
[1718337478843,10.17830366,147.5,147.45,6.52]
[1718337479043,10.17830366,147.5,147.45,0.34]
[1718337479255,10.17830366,147.49,147.45,6.18]
[1718337479472,10.17830366,147.5,147.45,6.18]
[1718337479859,10.17830366,147.5,147.44,0.34]
[1718337480172,10.17830366,147.5,147.45,6.18]
[1718337480378,10.17830366,147.49,147.45,6.18]
[1718337481571,10.17830366,147.48,147.45,6.18]
[1718337481968,10.17830366,147.48,147.4,6.1502]
[1718337481969,10.17830366,147.48,147.4,6.3202]
[1718337482156,10.17830366,147.48,147.43,6.18]
[1718337482559,10.17830366,147.46,147.39,15.3179]
[1718337482874,10.17830366,147.46,147.41,6.18]
[1718337484267,10.17830366,147.46,147.4,0.17]
[1718337484479,10.17830366,147.46,147.42,6.18]
[1718337484851,10.17830366,147.47,147.42,6.18]
[1718337485157,10.17830366,147.46,147.41,6.18]
[1718337487168,10.17830366,147.46,147.4,0.34]
[1718337487507,10.17830366,147.45,147.4,0.34]
[1718337487675,10.17830366,147.45,147.41,6.18]
[1718337487974,10.1786567,147.46,147.42,6.18]
[1718337488161,16.3586567,147.47,147.42,6.18]
[1718337488369,10.1786567,147.46,147.42,6.18]
[1718337489473,10.1786567,147.45,147.42,6.18]
[1718337489865,10.1786567,147.45,147.4,0.34]
[1718337490090,10.1786567,147.45,147.37,11.82752491]
[1718337490384,10.1786567,147.45,147.41,6.18]
[1718337490559,10.1786567,147.45,147.38,3.0204]
[1718337490959,10.1786567,147.45,147.41,6.18]
[1718337491172,10.1786567,147.45,147.38,3.0204]
[1718337491393,10.1786567,147.45,147.41,6.18]
[1718337492594,10.1786567,147.45,147.42,6.18]
[1718337492802,10.1786567,147.46,147.41,6.18]
[1718337493786,6.18,147.47,147.41,6.18]
[1718337494097,10.17846881,147.46,147.41,6.18]
[1718337497595,6.475,147.48,147.41,6.18]
[1718337497596,10.17846881,147.45,147.41,6.18]
[1718337497797,10.17846881,147.45,147.38,0.51]
[1718337497990,10.17846881,147.45,147.4,6.18]
[1718337498679,10.17846881,147.44,147.4,6.18]
[1718337499395,10.17846881,147.45,147.4,6.18]
[1718337500002,10.17846881,147.44,147.38,0.51]
[1718337500396,10.17846881,147.44,147.37,9.31692491]
[1718337500598,32.22046881,147.44,147.38,6.18]
[1718337500900,16.35846881,147.43,147.38,6.18]
[1718337501107,10.17846881,147.43,147.38,6.18]
[1718337502101,10.17846881,147.43,147.39,6.18]
[1718337505528,26.04046881,147.44,147.39,6.18]
[1718337505685,10.17846881,147.43,147.39,6.18]
[1718337506000,10.17846881,147.43,147.38,6.18]
[1718337506723,32.22046881,147.44,147.38,6.18]
[1718337507228,26.04046881,147.44,147.38,6.18]
[1718337507413,32.22046881,147.44,147.38,6.18]
[1718337508838,16.35846881,147.43,147.37,6.95927942]
[1718337510314,6.18,147.43,147.37,6.95927942]
[1718337512317,26.04046881,147.44,147.38,6.18]
[1718337512632,26.04046881,147.44,147.37,0.77927942]
[1718337512633,32.22046881,147.44,147.39,6.18]
[1718337513034,26.04046881,147.44,147.39,6.18]
[1718337513834,26.04046881,147.44,147.4,6.18]
[1718337514025,15.862,147.44,147.4,6.18]
[1718337514420,10.17958216,147.45,147.41,6.18]
[1718337514621,10.17958216,147.46,147.42,6.18]
[1718337515526,10.17867088,147.47,147.42,6.18]
[1718337516940,10.17867088,147.46,147.42,6.18]
[1718337517139,10.17867088,147.47,147.42,6.18]
[1718337517437,10.17867088,147.46,147.42,6.18]
[1718337517824,10.17867088,147.47,147.42,6.18]
[1718337518348,10.17867088,147.47,147.4,2.85]
[1718337518349,10.17867088,147.47,147.43,6.18]
[1718337518547,33.26867088,147.48,147.44,6.18]
[1718337518716,33.26867088,147.48,147.43,6.18]
[1718337519324,23.09,147.48,147.43,6.18]
[1718337520449,16.615,147.48,147.43,6.18]
[1718337520760,16.615,147.48,147.44,6.18]
[1718337522041,10.17867088,147.49,147.45,6.18]
[1718337522670,10.17867088,147.5,147.45,6.18]
[1718337523043,21.9794,147.51,147.45,6.18]
[1718337523261,28.1594,147.51,147.45,6.18]
[1718337524658,6.18,147.5,147.44,6.18]
[1718337525667,21.9794,147.51,147.44,6.18]
[1718337525864,6.18,147.5,147.44,6.18]
[1718337526872,6.18,147.5,147.42,0.17]
[1718337527068,6.18,147.48,147.42,6.18]
[1718337528366,0.17,147.5,147.42,6.18]
[1718337528581,6.18,147.48,147.42,6.18]
[1718337529286,20.17,147.5,147.42,6.18]
[1718337529585,6.18,147.48,147.42,6.18]
[1718337530878,20.17,147.5,147.42,6.18]
[1718337531069,6.18,147.48,147.42,6.18]
[1718337534185,20.17,147.5,147.42,6.18]
[1718337534393,6.18,147.48,147.42,6.18]
[1718337534600,21.9794,147.51,147.44,6.18]
[1718337534886,371.4096,147.59,147.47,6.18]
[1718337534887,22.7836,147.55,147.47,6.18]
[1718337535205,22.7836,147.55,147.49,6.18]
[1718337535206,28.9636,147.55,147.49,6.18]
[1718337535503,16.5378,147.55,147.49,6.18]
[1718337535666,22.7178,147.55,147.49,6.18]
[1718337536283,6.18,147.54,147.49,6.18]
[1718337536493,6.18,147.54,147.48,6.18]
[1718337536785,6.18,147.53,147.47,6.35]
[1718337536994,16.5378,147.55,147.47,6.35]
[1718337537185,6.18,147.53,147.47,6.35]
[1718337539007,6.18,147.54,147.48,6.18]
[1718337539400,16.5378,147.55,147.48,6.18]
[1718337539595,6.18,147.54,147.48,6.18]
[1718337540313,6.18,147.54,147.47,2.6789]
[1718337540607,6.18,147.53,147.48,6.18]
[1718337542313,16.5378,147.55,147.48,6.18]
[1718337542507,6.18,147.53,147.48,6.18]
[1718337544001,16.5378,147.55,147.48,6.18]
[1718337544187,6.18,147.53,147.48,6.18]
[1718337544583,6.18,147.53,147.46,0.17]
[1718337544817,6.18,147.52,147.46,6.18]
[1718337545120,6.18,147.51,147.45,22.5172]
[1718337545318,6.18,147.51,147.45,25.0265]
[1718337545618,6.18,147.51,147.45,22.5172]
[1718337548311,16.5378,147.55,147.47,6.18]
[1718337548520,16.5378,147.55,147.48,6.18]
[1718337548728,6.18,147.54,147.48,6.18]
[1718337549231,16.5378,147.55,147.48,6.18]
[1718337549440,6.3717,147.57,147.48,6.18]
[1718337549594,6.18,147.54,147.48,6.18]
[1718337551417,6.3717,147.57,147.48,6.18]
[1718337551738,6.18,147.54,147.48,6.18]
[1718337555157,6.18,147.53,147.47,6.35]
[1718337556537,6.18,147.53,147.46,0.34]
[1718337556722,6.18,147.52,147.46,6.18]
[1718337558015,0.17,147.55,147.46,6.18]
[1718337558016,6.18,147.51,147.46,6.18]
[1718337560329,15.6839,147.54,147.45,16.3372]
[1718337560641,6.18,147.49,147.43,6.18]
[1718337560945,6.18,147.5,147.44,6.18]
[1718337561853,6.18,147.51,147.45,6.18]
[1718337564054,20.0,147.53,147.45,6.18]
[1718337564255,6.18,147.51,147.45,6.18]
[1718337565870,6.18,147.5,147.44,6.35]
[1718337566378,6.18,147.5,147.44,0.17]
[1718337566571,6.18,147.5,147.44,6.18]
[1718337567685,6.18,147.5,147.43,0.51]
[1718337567885,6.18,147.5,147.44,6.18]
[1718337569287,6.18,147.51,147.45,6.18]
[1718337569866,20.0,147.53,147.45,16.1514]
[1718337570206,6.18,147.53,147.47,6.18]
[1718337570483,6.18,147.54,147.48,6.18]
[1718337570690,6.18,147.54,147.49,45.0]
[1718337580290,6.3717,147.57,147.49,45.0]
[1718337580490,20.0,147.56,147.49,45.0]
[1718337580713,6.18,147.54,147.49,45.0]
[1718337581399,6.18,147.53,147.46,6.9473]
[1718337581614,0.17,147.55,147.47,51.18]
[1718337581921,6.18,147.53,147.47,51.18]
[1718337582417,0.17,147.55,147.47,51.18]
[1718337582789,6.18,147.53,147.47,51.18]
[1718337583015,20.0,147.56,147.48,6.18]
[1718337583221,6.18,147.55,147.49,45.0]
[1718337583723,20.0,147.54,147.49,45.0]
[1718337585932,6.18,147.55,147.49,45.0]
[1718337586099,20.0,147.56,147.49,45.0]
[1718337586422,6.18,147.55,147.49,45.0]
[1718337588133,20.0,147.56,147.49,45.0]
[1718337588433,6.18,147.55,147.49,45.0]
[1718337589046,20.0,147.56,147.49,45.0]
[1718337589207,6.18,147.55,147.49,45.0]
[1718337590547,6.18,147.54,147.49,45.0]
[1718337595037,6.18,147.55,147.49,45.0]
[1718337596944,6.18,147.55,147.46,6.9473]
[1718337597245,6.18,147.54,147.47,6.18]
[1718337597822,20.17,147.56,147.47,6.18]
[1718337597823,6.18,147.53,147.47,6.18]
[1718337598042,6.18,147.54,147.47,6.18]
[1718337599538,6.18,147.54,147.46,6.4373]
[1718337599842,6.18,147.54,147.47,51.18]
[1718337600524,0.17,147.55,147.47,51.18]
[1718337600849,6.18,147.54,147.47,51.18]
[1718337601415,35.36194998,147.58,147.51,6.18]
[1718337601637,35.36194998,147.58,147.49,15.8123]
[1718337601638,20.0,147.57,147.52,6.18]
[1718337601921,20.0,147.57,147.5,6.4814]
[1718337602120,20.0,147.57,147.52,6.18]
[1718337602833,6.18,147.58,147.52,6.18]
[1718337603035,20.0,147.57,147.52,6.18]
[1718337603365,20.0,147.57,147.53,6.18]
[1718337603658,20.0,147.57,147.5,8.9898]
[1718337603659,20.0,147.58,147.5,8.9898]
[1718337603858,20.0,147.58,147.51,45.0]
[1718337604441,6.18,147.59,147.51,45.0]
[1718337604648,20.0,147.57,147.51,45.0]
[1718337604819,15.0103,147.62,147.51,45.0]
[1718337605152,106.787,147.67,147.56,6.18]
[1718337605153,6.0415,147.64,147.56,6.18]
[1718337605349,6.18,147.63,147.57,6.18]
[1718337605651,16.6625,147.66,147.57,6.18]
[1718337605853,25.85556952,147.68,147.59,6.18]
[1718337606027,253.1,147.7,147.62,6.18]
[1718337606229,6.18,147.68,147.62,6.18]
[1718337606620,15.1418,147.71,147.63,6.18]
[1718337607232,6.18,147.69,147.63,6.18]
[1718337607484,24.72,147.7,147.61,12.8056]
[1718337607785,15.1418,147.71,147.59,15.7044]
[1718337607786,115.1418,147.71,147.59,15.7044]
[1718337607954,6.18,147.65,147.6,51.18]
[1718337608134,6.18,147.66,147.6,51.18]
[1718337608345,24.72,147.7,147.6,51.18]
[1718337608661,6.18,147.66,147.6,51.18]
[1718337608873,0.17,147.66,147.59,15.7044]
[1718337609074,0.17,147.66,147.57,6.1398]
[1718337609241,20.0,147.69,147.58,45.0]
[1718337609440,115.1418,147.71,147.58,45.0]
[1718337609441,115.1418,147.71,147.61,6.18]
[1718337609641,20.0,147.68,147.63,6.18]
[1718337609840,15.1418,147.71,147.63,6.18]
[1718337610035,6.18,147.69,147.64,45.0]
[1718337610258,6.18,147.69,147.64,51.18]
[1718337611189,6.18,147.69,147.62,15.1733]
[1718337611485,6.18,147.68,147.62,21.3533]
[1718337611687,6.18,147.67,147.62,21.3533]
[1718337612160,6.18,147.67,147.62,15.1733]
[1718337612767,24.72,147.7,147.62,15.1733]
[1718337612965,6.18,147.67,147.62,21.3533]
[1718337613355,20.0,147.69,147.62,21.3533]
[1718337613557,6.18,147.68,147.62,15.1733]
[1718337613756,20.0,147.7,147.62,15.1733]
[1718337613757,6.18,147.67,147.62,15.1733]
[1718337615181,6.18,147.69,147.62,15.1733]
[1718337615388,26.18,147.7,147.64,6.18]
[1718337616256,20.0,147.7,147.65,51.18]
[1718337616465,6.18,147.71,147.66,45.0]
[1718337616873,6.18,147.71,147.65,6.18]
[1718337617466,6.18,147.7,147.64,6.18]
[1718337617696,6.18,147.7,147.65,45.0]
[1718337617871,6.18,147.69,147.62,21.8251]
[1718337618067,6.18,147.68,147.63,45.0]
[1718337619289,6.18,147.68,147.62,21.8251]
[1718337619583,0.17,147.68,147.58,21.5997]
[1718337619798,0.17,147.68,147.58,27.7797]
[1718337619799,6.18,147.64,147.58,27.7797]
[1718337619987,6.18,147.65,147.58,27.7797]
[1718337620171,6.18,147.65,147.59,6.18]
[1718337620488,6.18,147.65,147.58,21.5997]
[1718337621678,6.18,147.65,147.59,45.0]
[1718337621985,15.9832,147.69,147.62,6.18]
[1718337622281,6.2234,147.73,147.63,51.18]
[1718337622495,20.68,147.72,147.63,6.18]
[1718337622978,6.2234,147.73,147.64,45.0]
[1718337623170,6.2234,147.73,147.66,6.18]
[1718337623171,6.18,147.71,147.66,6.18]
[1718337623381,6.18,147.72,147.66,6.18]
[1718337623679,6.2234,147.73,147.66,6.18]
[1718337623878,6.18,147.72,147.67,45.0]
[1718337624083,15.9924,147.75,147.67,45.0]
[1718337624287,15.9924,147.75,147.68,6.18]
[1718337624478,6.18,147.74,147.68,6.18]
[1718337624801,6.18,147.75,147.69,51.18]
[1718337625016,6.18,147.75,147.7,6.18]
[1718337625497,6.18,147.75,147.69,6.18]
[1718337626400,6.18,147.74,147.68,6.18]
[1718337626611,6.18,147.74,147.67,45.0]
[1718337626815,6.18,147.74,147.68,6.18]
[1718337627396,0.17,147.76,147.68,6.18]
[1718337627618,6.18,147.74,147.68,6.18]
[1718337627795,6.18,147.74,147.69,45.0]
[1718337627995,20.0,147.76,147.69,51.18]
[1718337628198,6.18,147.75,147.7,6.18]
[1718337628411,20.0,147.76,147.71,6.18]
[1718337628717,15.9015,147.79,147.71,6.18]
[1718337629015,6.18,147.77,147.72,51.18]
[1718337629218,6.18,147.78,147.73,6.18]
[1718337629901,6.2237,147.81,147.72,51.18]
[1718337630105,6.18,147.79,147.73,6.18]
[1718337630332,6.18,147.78,147.72,51.18]
[1718337631715,6.18,147.78,147.73,6.18]
[1718337632307,6.18,147.79,147.73,6.18]
[1718337632510,20.0,147.78,147.73,6.18]
[1718337632714,6.18,147.8,147.74,6.18]
[1718337633014,20.0,147.79,147.74,6.18]
[1718337633517,15.0764,147.83,147.74,6.18]
[1718337633518,6.18,147.8,147.74,6.18]
[1718337634112,6.18,147.77,147.72,45.0]
[1718337634423,6.18,147.78,147.73,6.35]
[1718337634615,6.18,147.78,147.73,6.18]
[1718337635098,6.18,147.77,147.72,45.0]
[1718337635293,100.0,147.8,147.71,7.4893838]
[1718337635494,6.18,147.75,147.71,0.9772838]
[1718337635801,6.18,147.77,147.71,7.1572838]
[1718337636006,20.0,147.76,147.71,7.1572838]
[1718337636215,20.0,147.76,147.71,6.18]
[1718337636793,0.17,147.81,147.71,6.18]
[1718337637017,20.17,147.81,147.73,6.18]
[1718337637200,6.18,147.8,147.74,6.18]
[1718337637704,26.18,147.79,147.74,6.18]
[1718337638320,26.18,147.79,147.73,6.18]
[1718337642224,6.18,147.77,147.71,0.9772838]
[1718337642396,6.18,147.76,147.71,7.1572838]
[1718337643391,6.18,147.77,147.71,7.1572838]
[1718337643611,6.18,147.77,147.72,6.18]
[1718337644118,6.18,147.78,147.72,6.18]
[1718337644320,20.0,147.79,147.72,6.18]
[1718337644499,6.18,147.79,147.73,6.18]
[1718337645214,20.17,147.81,147.71,3.6520838]
[1718337645422,6.18,147.8,147.74,6.18]
[1718337645626,20.0,147.79,147.74,6.18]
[1718337646206,0.17,147.82,147.75,6.18]
[1718337646417,20.17,147.82,147.75,6.18]
[1718337646627,6.18,147.81,147.75,6.18]
[1718337647118,20.0,147.8,147.75,6.18]
[1718337647320,6.18,147.8,147.73,6.0474]
[1718337647529,15.0764,147.83,147.73,6.0474]
[1718337647708,6.18,147.78,147.73,6.0474]
[1718337647897,6.18,147.79,147.74,0.17]
[1718337648096,6.18,147.79,147.74,6.18]
[1718337648414,115.0764,147.83,147.74,6.18]
[1718337648722,6.18,147.77,147.71,1.1472838]
[1718337648928,6.18,147.77,147.71,7.1572838]
[1718337649493,0.17,147.8,147.71,7.1572838]
[1718337649697,0.17,147.8,147.72,0.97721764]
[1718337650003,6.18,147.78,147.72,7.15721764]
[1718337650320,0.17,147.8,147.73,6.18]
[1718337650321,6.18,147.79,147.73,6.18]
[1718337650521,100.0,147.81,147.73,6.18]
[1718337650703,6.18,147.79,147.73,6.18]
[1718337650904,6.18,147.78,147.72,7.15721764]
[1718337652308,6.18,147.77,147.72,0.97721764]
[1718337653898,6.18,147.78,147.72,7.15721764]
[1718337655006,6.18,147.77,147.72,0.97721764]
[1718337656220,0.17,147.8,147.72,0.97721764]
[1718337656632,6.18,147.79,147.73,6.18]
[1718337656832,0.17,147.81,147.73,6.18]
[1718337657012,6.18,147.79,147.73,6.18]
[1718337658000,20.0,147.82,147.75,6.18]
[1718337658227,6.18,147.8,147.74,6.35]
[1718337658641,20.0,147.79,147.74,6.35]
[1718337659137,20.0,147.79,147.74,6.18]
[1718337660530,20.0,147.79,147.72,0.97721764]
[1718337660705,6.18,147.79,147.73,6.18]
[1718337660905,6.18,147.77,147.72,0.97721764]
[1718337661132,6.18,147.78,147.72,7.15721764]
[1718337661433,6.18,147.78,147.72,6.18]
[1718337661819,0.17,147.8,147.7,16.567]
[1718337662022,6.18,147.75,147.7,16.567]
[1718337662946,6.18,147.75,147.7,22.747]
[1718337663249,20.68,147.8,147.71,6.18]
[1718337663250,6.18,147.77,147.71,6.18]
[1718337664926,0.17,147.77,147.7,16.567]
[1718337665241,6.18,147.75,147.7,16.567]
[1718337667054,6.18,147.74,147.68,0.97748233]
[1718337667245,6.18,147.72,147.66,22.879]
[1718337667543,6.18,147.72,147.66,29.059]
[1718337667934,6.18,147.71,147.66,22.879]
[1718337668331,6.18,147.71,147.66,16.5846]
[1718337668635,6.18,147.72,147.66,22.7646]
[1718337668851,6.18,147.73,147.67,6.18]
[1718337669541,44.72,147.77,147.67,6.18]
[1718337669731,6.18,147.74,147.68,6.18]
[1718337669933,6.18,147.73,147.67,6.18]
[1718337670121,26.18,147.73,147.67,6.18]
[1718337671447,26.18,147.73,147.66,16.7546]
[1718337671448,6.18,147.72,147.66,22.7646]
[1718337671658,6.18,147.71,147.66,16.5846]
[1718337672848,6.18,147.7,147.66,16.5846]
[1718337674453,6.18,147.69,147.66,16.5846]
[1718337674659,6.18,147.69,147.63,12.4744]
[1718337678129,6.18,147.7,147.64,6.18]
[1718337678748,20.0,147.69,147.65,6.18]
[1718337679068,26.18,147.7,147.64,6.18]